bitfinex/quotes_SOLUSD_20240613
["timestamp","ask_amount","ask_price","bid_price","bid_amount"]
[1718293232941,1.17487816,147.12,146.8,53.53354699]
[1718293232942,0.17,146.93,146.8,53.53354699]
[1718293233143,0.17,146.93,146.81,3.43e-05]
[1718293233144,2.52,146.82,146.81,3.43e-05]
[1718293233437,2.5198,146.84,146.81,3.43e-05]
[1718293233673,2.5194,146.86,146.81,3.43e-05]
[1718293233969,2.52,146.83,146.81,3.43e-05]
[1718293234843,2.5202,146.81,146.8,43.49489009]
[1718293235044,2.5212,146.75,146.74,0.0204]
[1718293235265,2.5212,146.75,146.74,0.0001]
[1718293235484,102.5212,146.75,146.74,0.0001]
[1718293235650,0.17,146.75,146.74,0.0001]
[1718293235845,27.35,146.81,146.74,0.0001]
[1718293236144,27.35,146.78,146.74,0.0001]
[1718293236366,2.5206,146.79,146.74,0.0001]
[1718293236566,27.35,146.84,146.74,0.0001]
[1718293236748,2.6861457,146.83,146.74,0.0001]
[1718293237565,127.35,146.93,146.74,0.0001]
[1718293237749,127.35,146.93,146.78,2.5206]
[1718293237750,2.5189,146.89,146.78,2.5206]
[1718293237955,2.6861457,146.92,146.75,0.17]
[1718293238268,2.5174,146.98,146.85,0.17]
[1718293238581,127.35,147.0,146.88,0.17]
[1718293238582,2.5178,146.96,146.88,0.17]
[1718293238743,27.35,146.96,146.84,6.2792]
[1718293238943,30.0361457,146.96,146.85,0.17]
[1718293239167,2.6861457,146.96,146.87,2.5191]
[1718293239340,2.6861457,146.96,146.85,0.51]
[1718293239541,2.6861457,146.96,146.84,6.2792]
[1718293240039,2.6861457,146.96,146.85,0.51]
[1718293240040,2.5181,146.94,146.85,0.51]
[1718293240241,2.6861457,146.96,146.85,0.34]
[1718293240446,51.9389445,146.85,146.84,6.2792]
[1718293240746,2.5181,146.94,146.84,6.9592]
[1718293240949,2.5181,146.94,146.85,0.51]
[1718293241573,2.5186,146.91,146.85,0.17]
[1718293241873,27.35,146.93,146.76,6.35]
[1718293242068,27.35,146.93,146.76,106.35]
[1718293242069,2.5185,146.91,146.76,106.35]
[1718293242252,2.5185,146.91,146.82,2.52]
[1718293242573,2.5185,146.91,146.76,6.35]
[1718293242574,2.5193,146.87,146.78,2.5206]
[1718293242867,2.5191,146.88,146.79,2.5205]
[1718293243072,2.5191,146.88,146.76,6.35]
[1718293243073,2.5187,146.9,146.76,6.35]
[1718293243468,100.0,146.94,146.79,2.5204]
[1718293243773,100.0,146.94,146.76,6.35]
[1718293243774,7.7225457,146.93,146.76,6.35]
[1718293243970,2.519,146.88,146.77,20.0]
[1718293244362,12.7622,146.92,146.77,20.0]
[1718293244563,5.037,146.92,146.77,20.0]
[1718293244770,2.6861457,146.93,146.81,2.5202]
[1718293245079,2.5189,146.89,146.81,2.5202]
[1718293245368,2.6861457,146.93,146.81,2.5202]
[1718293245369,2.519,146.88,146.81,2.5202]
[1718293245561,2.519,146.88,146.8,2.5204]
[1718293245762,2.519,146.88,146.81,0.17]
[1718293245958,5.0385,146.87,146.76,6.35]
[1718293246165,10.0759,146.89,146.76,6.35]
[1718293246367,100.0,146.86,146.74,0.0001]
[1718293246569,2.5209,146.77,146.74,0.0001]
[1718293246863,37.4268,146.88,146.74,0.0001]
[1718293247063,360.07,146.89,146.74,0.0001]
[1718293247064,5.038,146.89,146.74,0.0001]
[1718293247264,5.0391,146.85,146.74,0.0001]
[1718293247478,2.5202,146.82,146.75,2.5212]
[1718293247649,5.0389,146.86,146.74,0.0001]
[1718293247854,2.5199,146.83,146.76,2.5211]
[1718293248175,127.35,146.92,146.74,0.0001]
[1718293248176,27.35,146.85,146.74,0.0001]
[1718293248351,2.5202,146.82,146.75,2.5211]
[1718293248674,2.5211,146.76,146.74,0.0001]
[1718293248882,2.5204,146.8,146.74,0.0001]
[1718293249175,27.35,146.85,146.74,0.0001]
[1718293249359,2.5198,146.84,146.77,2.5209]
[1718293249562,2.52,146.83,146.76,2.521]
[1718293249749,2.5199,146.83,146.76,2.521]
[1718293249953,2.5202,146.82,146.74,0.0001]
[1718293250194,5.0389,146.86,146.75,2.5212]
[1718293250360,15.1191,146.84,146.74,2.6915]
[1718293250676,10.0796,146.84,146.74,0.0001]
[1718293250985,5.0399,146.83,146.74,0.0001]
[1718293251161,5.0402,146.82,146.74,0.0001]
[1718293251356,2.5212,146.75,146.74,0.0001]
[1718293252181,25.3826,146.75,146.74,0.0001]
[1718293252357,7.5637,146.75,146.74,0.0001]
[1718293252561,2.5212,146.75,146.74,0.0001]
[1718293252776,25.3826,146.75,146.74,0.0001]
[1718293252991,25.3826,146.75,146.62,10.71352237]
[1718293252992,12.6076,146.74,146.63,2.5233]
[1718293253274,127.35,146.79,146.63,2.5233]
[1718293253275,2.5218,146.73,146.66,2.5227]
[1718293253480,2.5218,146.73,146.63,5.0466]
[1718293253481,10.0847,146.76,146.62,10.19182613]
[1718293253657,359.9,146.82,146.63,17.6631]
[1718293253865,5.0418,146.78,146.63,12.6163]
[1718293254073,134.37052022,146.81,146.62,10.19182613]
[1718293254272,5.0428,146.75,146.64,2.523]
[1718293254582,2.5217,146.73,146.62,15.23872613]
[1718293254779,42.4758,146.77,146.62,15.23872613]
[1718293254780,10.0849,146.76,146.62,10.19182613]
[1718293254985,5.0434,146.73,146.62,10.19182613]
[1718293255358,5.0447,146.69,146.62,10.19182613]
[1718293255678,2.5224,146.68,146.62,10.19182613]
[1718293255875,5.0439,146.71,146.62,10.19182613]
[1718293256076,2.5226,146.68,146.62,10.19182613]
[1718293256383,2.5222,146.7,146.64,2.5231]
[1718293256593,27.35,146.75,146.62,10.19182613]
[1718293256776,2.5227,146.67,146.62,10.19182613]
[1718293256972,2.5225,146.68,146.62,10.19182613]
[1718293257294,2.5229,146.66,146.62,10.19182613]
[1718293257513,2.5227,146.67,146.62,10.19182613]
[1718293257673,2.5231,146.65,146.62,10.19182613]
[1718293257996,27.35,146.71,146.62,10.19182613]
[1718293258169,5.0454,146.67,146.62,10.19182613]
[1718293258369,2.5233,146.63,146.62,10.19182613]
[1718293259191,10.0933,146.63,146.62,10.19182613]
[1718293259393,25.2334,146.63,146.62,10.19182613]
[1718293259598,25.2334,146.63,146.62,2.613e-05]
[1718293260178,25.4034,146.63,146.62,2.613e-05]
[1718293260372,25.2334,146.63,146.62,2.613e-05]
[1718293260571,2.5233,146.63,146.62,2.613e-05]
[1718293261298,32.3961,146.65,146.62,2.613e-05]
[1718293261299,2.68703681,146.7,146.62,2.613e-05]
[1718293261598,27.35,146.72,146.62,2.613e-05]
[1718293261774,2.5223,146.69,146.62,2.613e-05]
[1718293261971,17.6534,146.72,146.62,2.69342613]
[1718293261972,2.5219,146.72,146.62,2.69342613]
[1718293262192,259.9,146.77,146.63,0.51]
[1718293262502,32.3914,146.79,146.66,5.0455]
[1718293262671,32.3914,146.79,146.64,100.17]
[1718293262672,27.35,146.79,146.69,0.17]
[1718293262871,7.5655,146.72,146.64,0.17]
[1718293263220,7.5655,146.72,146.62,2.613e-05]
[1718293263221,1.19362483,146.64,146.62,2.613e-05]
[1718293263373,2.5233,146.63,146.62,2.613e-05]
[1718293263718,10.0917,146.66,146.58,0.62584688]
[1718293263887,2.524,146.59,146.58,0.62584688]
[1718293264076,7.5688,146.66,146.58,0.62584688]
[1718293264279,2.5234,146.63,146.58,0.62584688]
[1718293264810,2.523,146.65,146.58,0.62584688]
[1718293264980,2.5228,146.66,146.59,2.5239]
[1718293265173,5.044,146.71,146.58,5.67414688]
[1718293265380,5.0448,146.69,146.58,0.62584688]
[1718293265581,2.5229,146.66,146.59,3.0339]
[1718293265782,100.0,146.71,146.58,0.62584688]
[1718293266070,7.572,146.59,146.58,0.62584688]
[1718293266272,27.35,146.72,146.58,0.62584688]
[1718293266273,100.0,146.71,146.58,0.62584688]
[1718293266478,2.524,146.59,146.58,0.62584688]
[1718293266896,15.1376,146.66,146.58,0.62584688]
[1718293267098,5.0459,146.66,146.58,0.62584688]
[1718293267303,27.35,146.67,146.58,0.62584688]
[1718293267601,27.35,146.72,146.58,0.62584688]
[1718293267981,5.0447,146.69,146.58,3.14994688]
[1718293268280,27.35,146.72,146.58,0.62584688]
[1718293268281,17.11070627,146.71,146.58,0.62584688]
[1718293268480,5.0448,146.69,146.58,3.14994688]
[1718293268675,5.0454,146.67,146.58,0.62584688]
[1718293268899,27.35,146.68,146.58,0.62584688]
[1718293269101,2.524,146.59,146.58,0.62584688]
[1718293269404,5.0465,146.64,146.58,0.62584688]
[1718293269584,30.0361457,146.68,146.58,0.62584688]
[1718293269585,2.5234,146.63,146.58,0.62584688]
[1718293269780,5.0458,146.66,146.58,0.62584688]
[1718293269984,37.6040457,146.68,146.58,0.62584688]
[1718293269985,2.5231,146.65,146.58,0.62584688]
[1718293270184,2.5229,146.66,146.59,2.694]
[1718293270404,7.7311457,146.68,146.61,0.17]
[1718293270405,2.6861457,146.68,146.61,0.17]
[1718293270701,2.5226,146.67,146.61,0.17]
[1718293270883,9.54440627,146.71,146.61,0.17]
[1718293271212,5.0449,146.69,146.61,0.17]
[1718293271414,9.75049327,146.71,146.61,2.6936]
[1718293271584,9.75049327,146.71,146.63,0.17]
[1718293271784,12.6078,146.74,146.63,0.17]
[1718293271785,5.043,146.74,146.63,0.17]
[1718293271991,5.043,146.74,146.63,2.8632]
[1718293272192,10.0873,146.72,146.64,0.34]
[1718293272410,2.5231,146.65,146.62,0.34]
[1718293272584,2.5233,146.64,146.59,0.17]
[1718293272904,27.35,146.71,146.59,0.34]
[1718293272905,42.4824,146.71,146.59,0.34]
[1718293273089,12.611,146.7,146.59,0.34]
[1718293273412,12.611,146.7,146.61,2.6936]
[1718293273413,2.5225,146.68,146.61,2.6936]
[1718293273701,7.02021763,146.73,146.62,0.17]
[1718293273886,2.5227,146.67,146.62,0.34]
[1718293274076,12.6103,146.71,146.63,0.34]
[1718293274077,2.5223,146.69,146.63,0.34]
[1718293274280,2.5222,146.7,146.63,2.8633]
[1718293274506,7.02021763,146.73,146.63,0.17]
[1718293274802,5.0452,146.68,146.58,0.62584688]
[1718293275013,2.5231,146.65,146.58,0.62584688]
[1718293275242,2.5236,146.62,146.58,0.62584688]
[1718293275536,7.5692,146.65,146.58,0.62584688]
[1718293275681,2.5239,146.6,146.58,0.62584688]
[1718293275877,10.0934,146.63,146.58,0.62584688]
[1718293276087,2.524,146.59,146.58,0.62584688]
[1718293276412,12.6172,146.63,146.58,0.62584688]
[1718293276589,2.5238,146.61,146.58,0.62584688]
[1718293276892,2.5236,146.62,146.58,0.62584688]
[1718293277088,27.35,146.67,146.58,0.62584688]
[1718293277406,2.5229,146.66,146.59,2.5239]
[1718293277928,2.5234,146.63,146.58,0.62584688]
[1718293278207,154.7,146.72,146.58,0.62584688]
[1718293278435,2.5239,146.6,146.58,0.62584688]
[1718293278582,2.524,146.59,146.58,0.62584688]
[1718293278790,25.2402,146.59,146.58,4.688e-05]
[1718293279037,25.2524,146.52,146.51,0.8423343]
[1718293279352,47.35,146.59,146.51,0.8423343]
[1718293279353,5.0484,146.58,146.51,0.8423343]
[1718293279553,5.0475,146.61,146.51,0.8423343]
[1718293279842,2.5232,146.64,146.57,2.5243]
[1718293280041,27.35,146.72,146.57,110.0]
[1718293280042,2.5229,146.66,146.57,110.0]
[1718293280258,5.0437,146.72,146.59,110.0]
[1718293280406,9.54181763,146.73,146.62,100.0]
[1718293280607,100.0,146.84,146.61,35.5073]
[1718293280608,2.5207,146.78,146.7,2.522]
[1718293280836,5.0405,146.81,146.72,0.17]
[1718293281040,5.0412,146.79,146.72,0.17]
[1718293281243,2.5206,146.79,146.72,0.17]
[1718293281539,7.01628513,146.82,146.68,100.0]
[1718293281719,2.5202,146.82,146.72,0.17]
[1718293281952,2.5202,146.82,146.69,25.5546]
[1718293281953,27.35,146.86,146.76,0.17]
[1718293282133,5.0393,146.85,146.76,0.17]
[1718293282445,7.01574112,146.84,146.71,0.17]
[1718293282614,2.5205,146.8,146.71,0.17]
[1718293282819,7.01574112,146.84,146.73,2.5216]
[1718293283016,7.01574112,146.84,146.71,0.34]
[1718293283017,7.01574112,146.84,146.78,2.5207]
[1718293283210,7.01574112,146.84,146.77,0.17]
[1718293283211,2.5202,146.81,146.74,0.51]
[1718293283420,7.01574112,146.84,146.74,0.17]
[1718293283609,7.01574112,146.84,146.75,0.17]
[1718293283831,7.01574112,146.84,146.77,0.17]
[1718293284312,9.53544112,146.84,146.77,0.17]
[1718293284507,7.01574112,146.84,146.77,0.17]
[1718293284711,7.01574112,146.84,146.77,6.3601]
[1718293284914,27.35,146.86,146.77,6.1901]
[1718293285127,5.0393,146.85,146.77,6.1901]
[1718293285337,2.5204,146.8,146.77,6.1901]
[1718293285727,2.521,146.77,146.69,8.5288]
[1718293285939,100.0,146.85,146.69,6.0066]
[1718293286121,2.5212,146.76,146.69,6.0066]
[1718293286463,5.0419,146.77,146.69,6.0066]
[1718293286685,2.5216,146.73,146.69,6.0066]
[1718293286958,2.5216,146.73,146.56,6.787]
[1718293286959,5.0426,146.75,146.63,9.0846]
[1718293287266,20.0,146.76,146.63,6.5614]
[1718293287441,2.5218,146.72,146.64,2.523]
[1718293287774,25.0423,146.76,146.63,6.5614]
[1718293287775,2.5213,146.75,146.63,6.5614]
[1718293288050,5.0427,146.75,146.65,2.5229]
[1718293288252,37.4339,146.77,146.63,6.5614]
[1718293288253,2.5223,146.69,146.63,6.5614]
[1718293288458,2.5225,146.68,146.63,6.5614]
[1718293288761,5.0449,146.69,146.63,6.5614]
[1718293289055,5.0449,146.69,146.57,11.532]
[1718293289056,2.5224,146.69,146.57,11.532]
[1718293289356,2.5221,146.7,146.62,2.5233]
[1718293289525,2.522,146.71,146.59,5.048]
[1718293289730,2.5221,146.7,146.63,2.5232]
[1718293289931,2.5223,146.69,146.62,2.5234]
[1718293290151,10.0876,146.72,146.57,106.4834]
[1718293290429,20.0,146.73,146.57,6.4834]
[1718293290430,27.35,146.7,146.57,6.4834]
[1718293290649,5.0453,146.68,146.57,6.4834]
[1718293291240,2.5231,146.65,146.57,6.4834]
[1718293291639,2.5231,146.65,146.58,2.5241]
[1718293291832,27.35,146.7,146.57,11.5321]
[1718293291833,32.3944,146.7,146.57,11.5321]
[1718293292033,2.5223,146.69,146.62,2.5234]
[1718293292439,20.0,146.71,146.59,17.6677]
[1718293292631,27.35,146.72,146.6,22.7142]
[1718293292834,2.5221,146.7,146.63,2.5232]
[1718293293034,2.5225,146.68,146.61,2.5236]
[1718293293353,2.5232,146.64,146.57,9.0077]
[1718293293562,12.6135,146.67,146.57,6.4834]
[1718293293744,2.5232,146.64,146.57,9.0076]
[1718293294270,2.5234,146.63,146.57,6.4834]
[1718293294566,2.5237,146.61,146.57,6.4834]
[1718293294737,5.0468,146.63,146.57,6.4834]
[1718293294937,5.0468,146.63,146.51,5.8930343]
[1718293294938,17.6661,146.61,146.51,7.2183343]
[1718293295132,5.0468,146.63,146.53,2.525]
[1718293295359,2.5241,146.59,146.52,2.5252]
[1718293295669,12.6175,146.62,146.53,2.5249]
[1718293295670,2.5239,146.6,146.53,2.5249]
[1718293296151,9.54670535,146.62,146.56,2.5244]
[1718293296346,9.54670535,146.62,146.55,0.17]
[1718293296347,7.02320535,146.62,146.57,2.8643]
[1718293296666,7.02320535,146.62,146.59,2.5239]
[1718293296853,7.02320535,146.62,146.58,0.34]
[1718293297037,7.02320535,146.62,146.59,0.34]
[1718293297233,206.5739,146.73,146.58,0.17]
[1718293297564,206.5739,146.73,146.58,2.864]
[1718293297565,2.5232,146.64,146.58,2.864]
[1718293297733,40.1237457,146.72,146.59,0.34]
[1718293297935,5.0448,146.69,146.6,0.34]
[1718293298135,10.0886,146.7,146.6,0.34]
[1718293298353,2.5228,146.67,146.61,2.5236]
[1718293298542,2.5228,146.67,146.61,2.6936]
[1718293298741,2.5228,146.66,146.6,2.5237]
[1718293298962,12.6111,146.7,146.58,5.0482]
[1718293299338,2.5226,146.67,146.58,5.0482]
[1718293299635,2.5228,146.66,146.6,2.5237]
[1718293299847,7.01969971,146.71,146.51,7.2183343]
[1718293300047,2.5242,146.58,146.52,2.5251]
[1718293300260,2.5241,146.59,146.52,2.5251]
[1718293300575,10.092,146.66,146.51,107.2183343]
[1718293300746,7.5675,146.68,146.58,2.524]
[1718293300938,20.0,146.7,146.51,127.6783343]
[1718293300939,12.6161,146.64,146.53,5.05]
[1718293301138,5.0465,146.64,146.53,5.05]
[1718293301450,2.5234,146.63,146.57,2.5243]
[1718293301653,20.0,146.67,146.55,7.5737]
[1718293301841,2.523,146.66,146.6,2.5238]
[1718293302349,9.70584541,146.71,146.53,10.1002]
[1718293302660,5.0451,146.68,146.57,5.0485]
[1718293302859,5.0444,146.7,146.58,10.0965]
[1718293303043,2.523,146.65,146.57,5.0485]
[1718293303244,2.5229,146.66,146.6,2.5238]
[1718293303549,12.6125,146.68,146.57,5.0485]
[1718293303754,5.0454,146.67,146.58,0.68]
[1718293303938,2.5231,146.64,146.58,3.2041]
[1718293304142,12.6146,146.66,146.54,7.5746]
[1718293304342,2.5232,146.64,146.58,2.5242]
[1718293304550,7.01969971,146.71,146.59,2.5239]
[1718293304551,2.523,146.65,146.59,2.5239]
[1718293304765,2.5228,146.67,146.61,2.5235]
[1718293305066,2.5228,146.67,146.59,5.048]
[1718293305067,2.5231,146.65,146.59,2.524]
[1718293305294,2.5238,146.61,146.52,10.1005]
[1718293305479,120.0,146.7,146.55,2.6946]
[1718293305777,220.0,146.7,146.54,2.5247]
[1718293305950,5.0467,146.63,146.53,5.0501]
[1718293306167,2.5234,146.63,146.57,2.5242]
[1718293306342,5.0461,146.65,146.57,2.5242]
[1718293306549,5.0461,146.65,146.56,2.5244]
[1718293306550,2.5235,146.62,146.56,2.5244]
[1718293306739,5.0461,146.65,146.57,2.5242]
[1718293307073,2.5234,146.63,146.57,2.5242]
[1718293307247,2.68703681,146.69,146.56,0.51]
[1718293307447,2.5236,146.62,146.56,3.0345]
[1718293307962,2.5237,146.61,146.56,0.34]
[1718293308166,5.0468,146.63,146.56,0.34]
[1718293308167,25.0468,146.63,146.56,0.34]
[1718293308346,2.5237,146.61,146.56,0.34]
[1718293308551,25.0468,146.63,146.56,0.34]
[1718293308750,2.5239,146.6,146.54,2.5248]
[1718293308961,2.5239,146.6,146.55,0.34]
[1718293309163,5.047,146.62,146.55,2.8647]
[1718293309371,7.02097008,146.65,146.51,7.2183343]
[1718293309372,27.35,146.64,146.51,7.2183343]
[1718293309549,2.5245,146.57,146.51,7.2183343]
[1718293309749,20.0,146.63,146.51,7.2183343]
[1718293310076,2.5252,146.52,146.51,0.8423343]
[1718293310390,27.35,146.6,146.51,0.8423343]
[1718293310597,2.5252,146.52,146.51,0.8423343]
[1718293311490,25.2524,146.52,146.51,0.8423343]
[1718293311643,45.2524,146.52,146.51,3.43e-05]
[1718293312275,45.2524,146.52,146.37,0.8423343]
[1718293312276,10.1051,146.47,146.37,0.8423343]
[1718293312456,2.5264,146.45,146.37,0.8423343]
[1718293312795,20.0,146.46,146.37,0.8423343]
[1718293312974,2.5265,146.45,146.38,2.5276]
[1718293313148,27.35,146.47,146.37,0.8423343]
[1718293313347,2.5267,146.44,146.37,0.8423343]
[1718293313545,27.35,146.47,146.37,0.8423343]
[1718293313958,20.0,146.46,146.37,0.8423343]
[1718293314152,5.0529,146.45,146.37,0.8423343]
[1718293314357,20.0,146.44,146.37,0.8423343]
[1718293314556,2.527,146.42,146.37,0.8423343]
[1718293314960,2.5269,146.42,146.37,0.8423343]
[1718293315175,29.8761,146.47,146.39,2.5274]
[1718293315353,10.1028,146.5,146.37,0.8423343]
[1718293315548,32.4023,146.47,146.38,0.17]
[1718293315753,2.5268,146.43,146.38,0.17]
[1718293315959,27.35,146.47,146.38,0.17]
[1718293316152,2.5263,146.46,146.38,0.34]
[1718293316351,2.5265,146.45,146.38,0.34]
[1718293316555,2.5266,146.44,146.38,0.34]
[1718293316761,2.5264,146.46,146.39,0.34]
[1718293316961,2.5261,146.47,146.4,0.34]
[1718293317166,2.5261,146.47,146.41,0.34]
[1718293317865,2.5263,146.46,146.41,0.17]
[1718293318067,27.35,146.51,146.37,0.8423343]
[1718293318259,2.527,146.42,146.37,0.8423343]
[1718293318461,5.0531,146.45,146.37,0.8423343]
[1718293318669,10.1056,146.46,146.37,0.8423343]
[1718293318961,2.527,146.42,146.37,0.8423343]
[1718293319158,7.03272113,146.46,146.38,10.1105]
[1718293319378,7.03272113,146.46,146.41,2.527]
[1718293319578,100.0,146.56,146.37,0.8423343]
[1718293319784,7.578,146.48,146.37,3.3699343]
[1718293319990,27.35,146.52,146.37,0.8423343]
[1718293320313,2.5258,146.49,146.37,0.8423343]
[1718293320470,7.02779844,146.5,146.37,0.8423343]
[1718293320471,9.55339844,146.5,146.38,5.0552]
[1718293320661,2.5255,146.51,146.43,2.5267]
[1718293320861,20.0,146.51,146.37,25.8976343]
[1718293321084,2.5253,146.52,146.4,5.0545]
[1718293321284,2.5251,146.53,146.45,2.5262]
[1718293321578,12.07675565,146.57,146.46,0.51]
[1718293321786,2.5249,146.54,146.46,0.51]
[1718293321986,7.02775565,146.57,146.47,0.17]
[1718293322186,9.55225565,146.57,146.49,2.5257]
[1718293322483,5.0491,146.56,146.5,0.17]
[1718293322659,27.35,146.56,146.45,6.2977]
[1718293322867,2.5258,146.49,146.45,6.2977]
[1718293323062,5.0503,146.53,146.45,6.2977]
[1718293323262,5.0503,146.53,146.4,10.0]
[1718293323263,2.5259,146.49,146.41,2.5271]
[1718293323573,2.5258,146.49,146.42,2.5269]
[1718293323777,2.5254,146.51,146.44,2.5266]
[1718293323983,7.5753,146.56,146.41,100.0]
[1718293324197,5.048,146.59,146.49,2.5256]
[1718293324396,2.5248,146.55,146.44,10.1064]
[1718293324570,34.37408551,146.58,146.46,5.0525]
[1718293324763,2.5249,146.54,146.47,2.5259]
[1718293324962,2.5249,146.54,146.4,126.6753]
[1718293324963,2.5263,146.46,146.4,8.7425]
[1718293325176,15.152,146.52,146.43,0.17]
[1718293325370,2.5259,146.48,146.41,20.0]
[1718293325676,2.5258,146.49,146.43,2.5267]
[1718293325875,2.526,146.48,146.41,2.527]
[1718293326181,32.4003,146.53,146.43,2.5266]
[1718293326380,27.35,146.53,146.4,6.2153]
[1718293326570,27.35,146.53,146.44,2.5265]
[1718293326571,2.5254,146.51,146.44,2.5265]
[1718293326773,27.35,146.53,146.47,2.526]
[1718293327091,27.35,146.53,146.4,11.2698]
[1718293327394,234.37408551,146.58,146.44,12.6328]
[1718293327395,49.52008551,146.58,146.44,12.6328]
[1718293327601,20.0,146.57,146.49,2.5257]
[1718293327843,2.5247,146.56,146.49,2.5256]
[1718293328095,20.0,146.57,146.45,0.17]
[1718293328295,12.6247,146.54,146.44,2.5265]
[1718293328506,12.6247,146.54,146.42,20.0]
[1718293328507,2.5255,146.51,146.42,20.0]
[1718293328794,2.5248,146.55,146.48,2.5258]
[1718293329004,2.5248,146.55,146.45,5.0526]
[1718293329005,2.5249,146.54,146.47,2.526]
[1718293329195,20.0,146.57,146.46,5.0525]
[1718293329376,2.5251,146.53,146.46,2.5261]
[1718293329576,2.5251,146.53,146.47,3.036]
[1718293329577,2.525,146.53,146.47,3.036]
[1718293329783,2.5252,146.52,146.47,0.51]
[1718293330075,2.5255,146.51,146.43,0.17]
[1718293330310,2.5253,146.52,146.45,2.5264]
[1718293330478,20.0,146.57,146.46,0.17]
[1718293330479,5.0492,146.56,146.46,0.17]
[1718293330804,2.5249,146.54,146.47,2.5261]
[1718293330974,5.0492,146.56,146.47,2.5261]
[1718293330975,2.5251,146.53,146.48,0.17]
[1718293331295,2.5249,146.54,146.48,0.17]
[1718293331606,5.0492,146.56,146.48,0.17]
[1718293331607,2.5253,146.52,146.48,0.17]
[1718293331816,5.0495,146.55,146.48,0.17]
[1718293331984,2.5251,146.53,146.47,0.34]
[1718293332317,2.5254,146.51,146.46,0.17]
[1718293332514,20.0,146.53,146.4,6.2153]
[1718293332833,15.1581,146.46,146.4,6.2153]
[1718293332996,27.35,146.51,146.4,6.2153]
[1718293332997,5.052,146.48,146.4,6.2153]
[1718293333182,25.0512,146.5,146.4,6.2153]
[1718293333387,27.35,146.51,146.44,2.5266]
[1718293333604,27.35,146.51,146.41,5.0542]
[1718293333895,7.02860059,146.52,146.42,7.5808]
[1718293334205,5.05,146.54,146.43,5.0535]
[1718293334504,10.0983,146.56,146.47,2.5259]
[1718293334505,22.17327713,146.56,146.47,2.5259]
[1718293334811,2.5253,146.52,146.46,2.6961]
[1718293335010,24.69777713,146.56,146.45,0.17]
[1718293335011,17.12407713,146.56,146.45,0.17]
[1718293335306,17.12407713,146.56,146.46,2.5261]
[1718293335307,2.5251,146.53,146.46,2.5261]
[1718293335506,2.5252,146.53,146.47,0.51]
[1718293335710,5.0495,146.55,146.47,0.51]
[1718293335880,7.02577713,146.56,146.47,0.51]
[1718293336082,2.5247,146.55,146.49,2.5257]
[1718293336308,2.5246,146.56,146.5,0.17]
[1718293336505,2.5247,146.55,146.5,0.17]
[1718293336681,2.5248,146.55,146.5,0.51]
[1718293337098,2.525,146.54,146.5,0.17]
[1718293337313,5.0495,146.55,146.45,0.17]
[1718293337488,5.0495,146.55,146.47,2.5261]
[1718293337489,2.5251,146.53,146.47,2.5261]
[1718293337694,2.5251,146.53,146.45,0.51]
[1718293337695,2.5251,146.53,146.48,0.17]
[1718293338005,2.5264,146.46,146.4,6.2153]
[1718293338191,127.35,146.58,146.4,6.2153]
[1718293338192,27.35,146.53,146.4,6.2153]
[1718293338391,5.0513,146.5,146.4,6.2153]
[1718293338594,2.5265,146.45,146.4,6.2153]
[1718293338791,2.5266,146.45,146.4,6.2153]
[1718293339011,5.0523,146.47,146.4,6.2153]